fUSD/lending_fUSD_20260529
["ID","MTS","AMOUNT","RATE_DAILY","PERIOD"]
[423367324,1780067525000,-152.0,0.00033574,17]
[423367323,1780067525000,-188.44606373,0.00033534,2]
[423367332,1780067525000,-25000.0,0.00033639,10]
[423367322,1780067525000,-163.0,0.0003352,11]
[423367329,1780067525000,-25000.0,0.00033612,10]
[423367327,1780067525000,-1000.77311587,0.00033595,2]
[423367330,1780067525000,-25000.0,0.00033621,10]
[423367328,1780067525000,-25000.0,0.00033604,10]
[423367333,1780067525000,-25000.0,0.00033648,10]
[423367335,1780067525000,-25000.0,0.00033656,10]
[423367304,1780067525000,-151.0,0.00033356,7]
[423367321,1780067525000,-1764.47,0.000335,2]
[423367302,1780067525000,-318.468309,0.00033356,7]
[423367334,1780067525000,-1000.0,0.0003365,104]
[423367305,1780067525000,-189.909505,0.00033356,7]
[423367281,1780067525000,-213.389433,0.00033356,7]
[423367283,1780067525000,-151.0,0.00033356,7]
[423367282,1780067525000,-426.523592,0.00033356,7]
[423367280,1780067525000,-213.389425,0.00033356,7]
[423367277,1780067525000,-261.056095,0.00033356,7]
[423367278,1780067525000,-213.389425,0.00033356,7]
[423367279,1780067525000,-213.389425,0.00033356,7]
[423367286,1780067525000,-426.523592,0.00033356,7]
[423367284,1780067525000,-426.523592,0.00033356,7]
[423367290,1780067525000,-1205.181902,0.00033356,7]
[423367295,1780067525000,-270.105674,0.00033356,7]
[423367287,1780067525000,-1205.181902,0.00033356,7]
[423367294,1780067525000,-1057.81329,0.00033356,7]
[423367285,1780067525000,-1205.181902,0.00033356,7]
[423367289,1780067525000,-270.105674,0.00033356,7]
[423367291,1780067525000,-270.105674,0.00033356,7]
[423367292,1780067525000,-166.684956,0.00033356,7]
[423367293,1780067525000,-1205.181892,0.00033356,7]
[423367288,1780067525000,-426.523597,0.00033356,7]
[423367297,1780067525000,-270.105676,0.00033356,7]
[423367296,1780067525000,-1057.81329,0.00033356,7]
[423367306,1780067525000,-189.909505,0.00033356,7]
[423367303,1780067525000,-318.468307,0.00033356,7]
[423367301,1780067525000,-318.468309,0.00033356,7]
[423367298,1780067525000,-1057.81329,0.00033356,7]
[423367300,1780067525000,-1057.813289,0.00033356,7]
[423367307,1780067525000,-189.909505,0.00033356,7]
[423367299,1780067525000,-318.468309,0.00033356,7]
[423367344,1780067525000,-25000.0,0.000337,10]
[423367342,1780067525000,-1550.0,0.00033699,30]
[423367337,1780067525000,-25000.0,0.00033674,10]
[423367372,1780067525000,-200.0,0.00033787,2]
[423367371,1780067525000,-200.0,0.00033787,2]
[423367370,1780067525000,-200.0,0.00033787,2]
[423367374,1780067525000,-200.0,0.00033787,2]
[423367373,1780067525000,-200.0,0.00033787,2]
[423367377,1780067525000,-200.0,0.00033787,2]
[423367375,1780067525000,-200.0,0.00033787,2]
[423367376,1780067525000,-200.0,0.00033787,2]
[423367380,1780067525000,-800.0,0.00033787,30]
[423367378,1780067525000,-200.0,0.00033787,2]
[423367379,1780067525000,-200.0,0.00033787,2]
[423367382,1780067525000,-800.0,0.00033787,30]
[423367393,1780067525000,-200.0,0.00033787,2]
[423367385,1780067525000,-800.0,0.00033787,30]
[423367383,1780067525000,-800.0,0.00033787,30]
[423367391,1780067525000,-200.0,0.00033787,2]
[423367387,1780067525000,-200.0,0.00033787,2]
[423367392,1780067525000,-200.0,0.00033787,2]
[423367386,1780067525000,-800.0,0.00033787,30]
[423367389,1780067525000,-200.0,0.00033787,2]
[423367390,1780067525000,-200.0,0.00033787,2]
[423367384,1780067525000,-800.0,0.00033787,30]
[423367388,1780067525000,-200.0,0.00033787,2]
[423367395,1780067525000,-200.0,0.00033787,2]
[423367398,1780067525000,-200.0,0.00033787,2]
[423367396,1780067525000,-200.0,0.00033787,2]
[423367336,1780067525000,-25000.0,0.00033665,10]
[423367381,1780067525000,-800.0,0.00033787,30]
[423367365,1780067525000,-200.0,0.00033787,2]
[423367397,1780067525000,-200.0,0.00033787,2]
[423367367,1780067525000,-200.0,0.00033787,2]
[423367363,1780067525000,-25000.0,0.0003378,10]
[423367338,1780067525000,-674.0,0.00033681,30]
[423367394,1780067525000,-200.0,0.00033787,2]
[423367340,1780067525000,-25000.0,0.00033683,10]
[423367341,1780067525000,-25000.0,0.00033692,10]
[423367343,1780067525000,-500.0,0.00033699,7]
[423367346,1780067525000,-573.78,0.00033714,7]
[423367348,1780067525000,-25000.0,0.00033727,10]
[423367357,1780067525000,-25000.0,0.00033753,10]
[423367356,1780067525000,-2318.0,0.00033747,11]
[423367347,1780067525000,-25000.0,0.00033718,10]
[423367345,1780067525000,-25000.0,0.00033709,10]
[423367352,1780067525000,-163.0,0.0003374,11]
[423367354,1780067525000,-25000.0,0.00033744,10]
[423367339,1780067525000,-841.0,0.00033681,30]
[423367351,1780067525000,-25000.0,0.00033736,10]
[423367353,1780067525000,-25000.0,0.00033744,10]
[423367364,1780067525000,-25000.0,0.0003378,10]
[423367366,1780067525000,-200.0,0.00033787,2]
[423367362,1780067525000,-25000.0,0.00033771,10]
[423367361,1780067525000,-25000.0,0.00033771,10]
[423367369,1780067525000,-200.0,0.00033787,2]
[423367368,1780067525000,-200.0,0.00033787,2]
[423367360,1780067525000,-25000.0,0.00033762,10]
[423367358,1780067525000,-25000.0,0.00033753,10]
[423367350,1780067525000,-25000.0,0.00033736,10]
[423367355,1780067525000,-2318.0,0.00033747,11]
[423367349,1780067525000,-25000.0,0.00033727,10]
[423367359,1780067525000,-25000.0,0.00033762,10]
[423367441,1780067526000,-1275.84515702,0.00033943,7]
[423367438,1780067526000,-702.452434,0.000339,20]
[423367439,1780067526000,-247.121621,0.000339,20]
[423367437,1780067526000,-200.0,0.000339,13]
[423367433,1780067526000,-25000.0,0.00033806,10]
[423367434,1780067526000,-9556.36287197,0.00033806,10]
[423367436,1780067526000,-535.4,0.00033883,7]
[423367432,1780067526000,-25000.0,0.00033806,10]
[423367422,1780067526000,-500.0,0.00033787,2]
[423367440,1780067526000,-700.0,0.000339,12]
[423367435,1780067526000,-253.06,0.00033807,2]
[423367419,1780067526000,-500.0,0.00033787,2]
[423367449,1780067526000,-1225.33503328,0.00033948,7]
[423367443,1780067526000,-1071.1585427,0.00033948,7]
[423367445,1780067526000,-2603.31812378,0.00033948,7]
[423367444,1780067526000,-1111.70872836,0.00033948,7]
[423367455,1780067526000,-575.71,0.00034051,7]
[423367452,1780067526000,-350.0,0.00033973,5]
[423367447,1780067526000,-1334.46761223,0.00033948,7]
[423367448,1780067526000,-2298.48893449,0.00033948,7]
[423367454,1780067526000,-1000.0,0.00033999,32]
[423367450,1780067526000,-2396.52696443,0.00033948,7]
[423367451,1780067526000,-996.0,0.00033958,11]
[423367446,1780067526000,-2018.92979638,0.00033948,7]
[423367453,1780067526000,-1550.0,0.00033973,30]
[423367427,1780067526000,-25000.0,0.00033788,10]
[423367442,1780067526000,-1150.33479019,0.00033943,7]
[423367429,1780067526000,-25000.0,0.00033797,10]
[423367416,1780067526000,-200.0,0.00033787,2]
[423367424,1780067526000,-500.0,0.00033787,2]
[423367403,1780067526000,-200.0,0.00033787,2]
[423367404,1780067526000,-200.0,0.00033787,2]
[423367405,1780067526000,-200.0,0.00033787,2]
[423367399,1780067526000,-200.0,0.00033787,2]
[423367400,1780067526000,-200.0,0.00033787,2]
[423367402,1780067526000,-200.0,0.00033787,2]
[423367401,1780067526000,-200.0,0.00033787,2]
[423367406,1780067526000,-200.0,0.00033787,2]
[423367409,1780067526000,-200.0,0.00033787,2]
[423367408,1780067526000,-200.0,0.00033787,2]
[423367411,1780067526000,-200.0,0.00033787,2]
[423367412,1780067526000,-200.0,0.00033787,2]
[423367425,1780067526000,-526.0,0.00033787,2]
[423367410,1780067526000,-200.0,0.00033787,2]
[423367414,1780067526000,-200.0,0.00033787,2]
[423367407,1780067526000,-200.0,0.00033787,2]
[423367417,1780067526000,-200.0,0.00033787,2]
[423367418,1780067526000,-205.0,0.00033787,2]
[423367415,1780067526000,-200.0,0.00033787,2]
[423367430,1780067526000,-219.12943684,0.00033804,14]
[423367420,1780067526000,-500.0,0.00033787,2]
[423367431,1780067526000,-183.86,0.00033806,2]
[423367423,1780067526000,-500.0,0.00033787,2]
[423367421,1780067526000,-500.0,0.00033787,2]
[423367426,1780067526000,-25000.0,0.00033788,10]
[423367428,1780067526000,-25000.0,0.00033797,10]
[423367413,1780067526000,-200.0,0.00033787,2]
[423367458,1780067526000,-1590.0,0.00034053,11]
[423367459,1780067526000,-200.0,0.00034109,2]
[423367460,1780067526000,-200.0,0.00034109,2]
[423367502,1780067526000,-400.197715,0.00034453,7]
[423367491,1780067526000,-258.876505,0.00034453,7]
[423367492,1780067526000,-258.876505,0.00034453,7]
[423367497,1780067526000,-158.848411,0.00034453,7]
[423367493,1780067526000,-158.848411,0.00034453,7]
[423367496,1780067526000,-258.876505,0.00034453,7]
[423367494,1780067526000,-258.876505,0.00034453,7]
[423367495,1780067526000,-158.848411,0.00034453,7]
[423367499,1780067526000,-151.0,0.00034453,7]
[423367498,1780067526000,-158.848411,0.00034453,7]
[423367500,1780067526000,-400.197715,0.00034453,7]
[423367501,1780067526000,-400.197715,0.00034453,7]
[423367481,1780067526000,-253.36519863,0.00034285,2]
[423367504,1780067526000,-400.0,0.00034453,2]
[423367503,1780067526000,-400.197715,0.00034453,7]
[423367506,1780067526000,-400.0,0.00034453,2]
[423367505,1780067526000,-400.0,0.00034453,2]
[423367507,1780067526000,-2318.0,0.0003448,11]
[423367509,1780067526000,-1550.0,0.00034521,30]
[423367510,1780067526000,-4864.15,0.00034521,120]
[423367511,1780067526000,-541.4,0.00034557,7]
[423367512,1780067526000,-1350.60335203,0.00034568,14]
[423367513,1780067526000,-674.0,0.00034681,30]
[423367515,1780067526000,-1590.0,0.00034693,11]
[423367514,1780067526000,-841.0,0.00034681,30]
[423367456,1780067526000,-1590.0,0.00034053,11]
[423367508,1780067526000,-996.0,0.00034513,11]
[423367485,1780067526000,-561.06,0.00034389,7]
[423367516,1780067526000,-1590.0,0.00034693,11]
[423367490,1780067526000,-275.910508,0.00034453,7]
[423367483,1780067526000,-150.30096206,0.0003431,120]
[423367457,1780067526000,-2318.0,0.00034053,11]
[423367461,1780067526000,-165.0,0.00034109,2]
[423367464,1780067526000,-200.0,0.00034109,2]
[423367463,1780067526000,-200.0,0.00034109,2]
[423367465,1780067526000,-200.0,0.00034109,2]
[423367466,1780067526000,-347.0,0.00034109,2]
[423367467,1780067526000,-3115.9,0.00034182,7]
[423367468,1780067526000,-188.44606371,0.00034186,2]
[423367479,1780067526000,-1550.0,0.00034247,30]
[423367475,1780067526000,-3638.0,0.00034217,2]
[423367476,1780067526000,-6066.0,0.00034217,2]
[423367477,1780067526000,-542.87,0.0003422,7]
[423367462,1780067526000,-200.0,0.00034109,2]
[423367472,1780067526000,-600.0,0.00034212,120]
[423367488,1780067526000,-275.910508,0.00034453,7]
[423367487,1780067526000,-275.910508,0.00034453,7]
[423367484,1780067526000,-1590.0,0.00034373,11]
[423367486,1780067526000,-9156.63048737,0.00034453,30]
[423367478,1780067526000,-500.0,0.00034238,2]
[423367482,1780067526000,-152.0,0.00034288,18]
[423367489,1780067526000,-275.910508,0.00034453,7]
[423367471,1780067526000,-1182.98,0.000342,20]
[423367469,1780067526000,-1160.73863588,0.00034188,7]
[423367470,1780067526000,-1181.94943501,0.0003419,2]
[423367473,1780067526000,-477.0,0.00034217,2]
[423367474,1780067526000,-1021.0,0.00034217,2]
[423367480,1780067526000,-7931.97999999,0.00034247,30]
[423367553,1780067527000,-213.717974,0.00035,7]
[423367557,1780067527000,-213.717974,0.00035,7]
[423367562,1780067527000,-151.0,0.00035,7]
[423367552,1780067527000,-151.0,0.00035,7]
[423367548,1780067527000,-1000.0,0.00035,14]
[423367560,1780067527000,-233.934602,0.00035,7]
[423367556,1780067527000,-151.0,0.00035,7]
[423367550,1780067527000,-151.0,0.00035,7]
[423367547,1780067527000,-1000.0,0.00035,14]
[423367546,1780067527000,-1000.0,0.00035,14]
[423367554,1780067527000,-151.0,0.00035,7]
[423367561,1780067527000,-233.934602,0.00035,7]
[423367574,1780067527000,-500.0,0.00035,7]
[423367551,1780067527000,-151.0,0.00035,7]
[423367559,1780067527000,-233.934602,0.00035,7]
[423367558,1780067527000,-213.717974,0.00035,7]
[423367564,1780067527000,-233.934602,0.00035,7]
[423367573,1780067527000,-151.0,0.00035,7]
[423367565,1780067527000,-226.039021,0.00035,7]
[423367566,1780067527000,-226.039021,0.00035,7]
[423367572,1780067527000,-500.0,0.00035,7]
[423367567,1780067527000,-226.039021,0.00035,7]
[423367570,1780067527000,-500.0,0.00035,7]
[423367568,1780067527000,-151.0,0.00035,7]
[423367543,1780067527000,-340000.0,0.00035,4]
[423367555,1780067527000,-213.717974,0.00035,7]
[423367540,1780067527000,-1000.0,0.00035,2]
[423367528,1780067527000,-418.0,0.00034944,2]
[423367542,1780067527000,-245.82,0.00035,2]
[423367569,1780067527000,-151.0,0.00035,7]
[423367525,1780067527000,-5000.0,0.00034914,2]
[423367526,1780067527000,-5000.0,0.00034914,2]
[423367517,1780067527000,-140942.0,0.000347,2]
[423367518,1780067527000,-1550.0,0.00034795,30]
[423367522,1780067527000,-1001.0,0.00034849,120]
[423367519,1780067527000,-1500.0,0.00034795,2]
[423367523,1780067527000,-1986.95529449,0.00034867,2]
[423367524,1780067527000,-5024.24664656,0.00034914,2]
[423367521,1780067527000,-1973.44227401,0.00034849,77]
[423367520,1780067527000,-1973.44227401,0.00034849,77]
[423367529,1780067527000,-1000.0,0.00034999,36]
[423367544,1780067527000,-26302.36128184,0.00035,2]
[423367530,1780067527000,-1953.43849529,0.00035,2]
[423367527,1780067527000,-350.0,0.00034931,5]
[423367532,1780067527000,-190.07722296,0.00035,2]
[423367535,1780067527000,-2873.61594277,0.00035,14]
[423367533,1780067527000,-18385.72970847,0.00035,7]
[423367536,1780067527000,-1000.0,0.00035,14]
[423367537,1780067527000,-1300.42969091,0.00035,14]
[423367534,1780067527000,-1000.0,0.00035,2]
[423367539,1780067527000,-500.0,0.00035,14]
[423367549,1780067527000,-151.0,0.00035,7]
[423367541,1780067527000,-1000.0,0.00035,7]
[423367538,1780067527000,-359.42,0.00035,5]
[423367545,1780067527000,-1000.0,0.00035,14]
[423367531,1780067527000,-526.0,0.00035,5]
[423367571,1780067527000,-500.0,0.00035,7]
[423367563,1780067527000,-226.039021,0.00035,7]
[423367586,1780067527000,-325.729448,0.00035,7]
[423367607,1780067527000,-62034.01064401,0.00035205,7]
[423367608,1780067527000,-8541.86980158,0.00035205,7]
[423367609,1780067527000,-1000.0,0.00035208,10]
[423367611,1780067527000,-168.91013242,0.00035285,7]
[423367613,1780067527000,-1550.0,0.00035342,30]
[423367614,1780067527000,-1000.0,0.00035345,10]
[423367612,1780067527000,-1000.0,0.0003533,10]
[423367615,1780067527000,-310.28230408,0.00035384,2]
[423367616,1780067527000,-1096.29268349,0.00035384,2]
[423367617,1780067527000,-300.0,0.00035384,2]
[423367610,1780067527000,-5000.0,0.00035243,2]
[423367620,1780067527000,-484.76763573,0.00035384,2]
[423367605,1780067527000,-528.366217,0.000352,26]
[423367618,1780067527000,-300.0,0.00035384,2]
[423367622,1780067527000,-659.33762231,0.00035384,2]
[423367632,1780067527000,-595.09304777,0.00035421,2]
[423367621,1780067527000,-361.3543706,0.00035384,2]
[423367623,1780067527000,-310.02493426,0.00035421,2]
[423367624,1780067527000,-511.13380127,0.00035421,2]
[423367626,1780067527000,-300.0,0.00035421,2]
[423367631,1780067527000,-300.94752907,0.00035421,2]
[423367629,1780067527000,-300.0,0.00035421,2]
[423367628,1780067527000,-300.0,0.00035421,2]
[423367627,1780067527000,-300.0,0.00035421,2]
[423367625,1780067527000,-1096.29268349,0.00035421,2]
[423367576,1780067527000,-252.582498,0.00035,7]
[423367619,1780067527000,-525.10823235,0.00035384,2]
[423367606,1780067527000,-556.08,0.000352,26]
[423367630,1780067527000,-300.0,0.00035421,2]
[423367600,1780067527000,-1550.0,0.00035068,30]
[423367575,1780067527000,-151.0,0.00035,7]
[423367578,1780067527000,-252.582498,0.00035,7]
[423367584,1780067527000,-199.61894,0.00035,7]
[423367577,1780067527000,-252.582498,0.00035,7]
[423367580,1780067527000,-199.61894,0.00035,7]
[423367581,1780067527000,-199.61894,0.00035,7]
[423367582,1780067527000,-199.61894,0.00035,7]
[423367604,1780067527000,-150.0,0.00035124,2]
[423367583,1780067527000,-325.729448,0.00035,7]
[423367579,1780067527000,-252.582498,0.00035,7]
[423367585,1780067527000,-325.729448,0.00035,7]
[423367588,1780067527000,-151.0,0.00035,7]
[423367587,1780067527000,-325.729448,0.00035,7]
[423367633,1780067527000,-300.0,0.00035421,2]
[423367596,1780067527000,-63485.35982362,0.00035,10]
[423367602,1780067527000,-1000.0,0.00035071,10]
[423367597,1780067527000,-152.0,0.00035003,19]
[423367601,1780067527000,-500.0,0.00035069,7]
[423367599,1780067527000,-996.0,0.00035067,12]
[423367598,1780067527000,-163.0,0.00035013,11]
[423367595,1780067527000,-6043.30142692,0.00035,10]
[423367603,1780067527000,-151.955364,0.00035115,14]
[423367592,1780067527000,-190.188066,0.00035,7]
[423367593,1780067527000,-190.188066,0.00035,7]
[423367591,1780067527000,-190.188066,0.00035,7]
[423367590,1780067527000,-190.188066,0.00035,7]
[423367589,1780067527000,-273.869986,0.00035,7]
[423367594,1780067527000,-163.7658243,0.00035,10]
[423367676,1780067528000,-300.0,0.00035421,2]
[423367670,1780067528000,-1068.96552452,0.00035421,2]
[423367669,1780067528000,-300.0,0.00035421,2]
[423367667,1780067528000,-300.0,0.00035421,2]
[423367675,1780067528000,-301.64471136,0.00035421,2]
[423367663,1780067528000,-485.01785215,0.00035421,2]
[423367673,1780067528000,-301.13944046,0.00035421,2]
[423367668,1780067528000,-502.84843231,0.00035421,2]
[423367665,1780067528000,-300.0,0.00035421,2]
[423367664,1780067528000,-310.43621279,0.00035421,2]
[423367674,1780067528000,-301.84447485,0.00035421,2]
[423367672,1780067528000,-300.0,0.00035421,2]
[423367684,1780067528000,-300.0,0.00035421,2]
[423367671,1780067528000,-726.74246778,0.00035421,2]
[423367685,1780067528000,-300.0,0.00035421,2]
[423367679,1780067528000,-1233.54164719,0.00035421,2]
[423367678,1780067528000,-866.0147925,0.00035421,2]
[423367686,1780067528000,-557.96438236,0.00035421,2]
[423367688,1780067528000,-310.12839537,0.00035421,2]
[423367689,1780067528000,-300.0,0.00035421,2]
[423367687,1780067528000,-484.51741929,0.00035421,2]
[423367680,1780067528000,-309.86304511,0.00035421,2]
[423367681,1780067528000,-468.71544264,0.00035421,2]
[423367682,1780067528000,-448.30463693,0.00035421,2]
[423367662,1780067528000,-300.0,0.00035421,2]
[423367677,1780067528000,-527.62572404,0.00035421,2]
[423367661,1780067528000,-300.0,0.00035421,2]
[423367644,1780067528000,-727.4140771,0.00035421,2]
[423367658,1780067528000,-578.60872649,0.00035421,2]
[423367683,1780067528000,-577.95757401,0.00035421,2]
[423367635,1780067528000,-300.0,0.00035421,2]
[423367637,1780067528000,-300.0,0.00035421,2]
[423367636,1780067528000,-300.0,0.00035421,2]
[423367642,1780067528000,-350.45742436,0.00035421,2]
[423367638,1780067528000,-300.0,0.00035421,2]
[423367639,1780067528000,-473.72370344,0.00035421,2]
[423367634,1780067528000,-452.76288982,0.00035421,2]
[423367643,1780067528000,-300.0,0.00035421,2]
[423367641,1780067528000,-605.31118565,0.00035421,2]
[423367640,1780067528000,-493.38669858,0.00035421,2]
[423367645,1780067528000,-302.36122202,0.00035421,2]
[423367660,1780067528000,-300.0,0.00035421,2]
[423367651,1780067528000,-950.77707124,0.00035421,2]
[423367649,1780067528000,-300.0,0.00035421,2]
[423367653,1780067528000,-310.1868234,0.00035421,2]
[423367652,1780067528000,-1149.40085639,0.00035421,2]
[423367654,1780067528000,-594.50397194,0.00035421,2]
[423367646,1780067528000,-423.17428681,0.00035421,2]
[423367647,1780067528000,-300.0,0.00035421,2]
[423367650,1780067528000,-344.45437933,0.00035421,2]
[423367656,1780067528000,-464.71574173,0.00035421,2]
[423367659,1780067528000,-452.29497812,0.00035421,2]
[423367657,1780067528000,-300.0,0.00035421,2]
[423367666,1780067528000,-1096.84070935,0.00035421,2]
[423367655,1780067528000,-300.0,0.00035421,2]
[423367648,1780067528000,-300.0,0.00035421,2]
[423367691,1780067528000,-300.0,0.00035421,2]
[423367690,1780067528000,-352.1155699,0.00035421,2]
[423367699,1780067528000,-300.85646239,0.00035421,2]
[423367718,1780067528000,-403.22861642,0.00035421,2]
[423367719,1780067528000,-378.63419068,0.00035421,2]
[423367727,1780067528000,-578.28315025,0.00035421,2]
[423367735,1780067528000,-300.0,0.00035421,2]
[423367726,1780067528000,-464.48677942,0.00035421,2]
[423367732,1780067528000,-1263.96825586,0.00035421,2]
[423367733,1780067528000,-300.09384643,0.00035421,2]
[423367730,1780067528000,-300.0,0.00035421,2]
[423367728,1780067528000,-493.38669858,0.00035421,2]
[423367736,1780067528000,-452.52893396,0.00035421,2]
[423367731,1780067528000,-300.0,0.00035421,2]
[423367737,1780067528000,-300.0,0.00035421,2]
[423367720,1780067528000,-375.76396586,0.00035421,2]
[423367729,1780067528000,-605.31118565,0.00035421,2]
[423367739,1780067528000,-300.0,0.00035421,2]
[423367748,1780067528000,-300.90754201,0.00035421,2]
[423367749,1780067528000,-527.88012034,0.00035421,2]
[423367747,1780067528000,-1264.24574847,0.00035421,2]
[423367743,1780067528000,-300.0,0.00035421,2]
[423367738,1780067528000,-493.38669858,0.00035421,2]
[423367742,1780067528000,-302.2839583,0.00035421,2]
[423367741,1780067528000,-727.22668273,0.00035421,2]
[423367700,1780067528000,-301.24985967,0.00035421,2]
[423367744,1780067528000,-300.0,0.00035421,2]
[423367746,1780067528000,-519.91614361,0.00035421,2]
[423367745,1780067528000,-300.0,0.00035421,2]
[423367734,1780067528000,-1148.83589153,0.00035421,2]
[423367717,1780067528000,-556.42246208,0.00035421,2]
[423367740,1780067528000,-1068.67230718,0.00035421,2]
[423367722,1780067528000,-310.02493426,0.00035421,2]
[423367701,1780067528000,-527.62572403,0.00035421,2]
[423367721,1780067528000,-300.0,0.00035421,2]
[423367693,1780067528000,-605.31118563,0.00035421,2]
[423367692,1780067528000,-300.0,0.00035421,2]
[423367694,1780067528000,-301.73020364,0.00035421,2]
[423367696,1780067528000,-1067.83774251,0.00035421,2]
[423367695,1780067528000,-403.22861642,0.00035421,2]
[423367698,1780067528000,-302.07751855,0.00035421,2]
[423367697,1780067528000,-535.00130983,0.00035421,2]
[423367704,1780067528000,-949.86352484,0.00035421,2]
[423367712,1780067528000,-600.18769288,0.00035421,2]
[423367713,1780067528000,-1095.74465766,0.00035421,2]
[423367707,1780067528000,-403.22861642,0.00035421,2]
[423367702,1780067528000,-301.32733871,0.00035421,2]
[423367709,1780067528000,-1264.55270744,0.00035421,2]
[423367710,1780067528000,-344.45437934,0.00035421,2]
[423367703,1780067528000,-1161.88587619,0.00035421,2]
[423367706,1780067528000,-301.5012826,0.00035421,2]
[423367708,1780067528000,-535.00130983,0.00035421,2]
[423367711,1780067528000,-301.26632482,0.00035421,2]
[423367715,1780067528000,-1263.38380429,0.00035421,2]
[423367723,1780067528000,-729.59048462,0.00035421,2]
[423367725,1780067528000,-300.0,0.00035421,2]
[423367724,1780067528000,-594.79850987,0.00035421,2]
[423367714,1780067528000,-719.30606801,0.00035421,2]
[423367716,1780067528000,-764.40163352,0.00035421,2]
[423367705,1780067528000,-300.0,0.00035421,2]
[423367791,1780067529000,-300.0,0.00035421,2]
[423367785,1780067529000,-300.0,0.00035421,2]
[423367782,1780067529000,-300.70435696,0.00035421,2]
[423367781,1780067529000,-301.13944046,0.00035421,2]
[423367780,1780067529000,-300.0,0.00035421,2]
[423367784,1780067529000,-300.0,0.00035421,2]
[423367783,1780067529000,-300.0,0.00035421,2]
[423367775,1780067529000,-1068.67230718,0.00035421,2]
[423367786,1780067529000,-1264.24574848,0.00035421,2]
[423367789,1780067529000,-527.88012034,0.00035421,2]
[423367790,1780067529000,-300.96253655,0.00035421,2]
[423367793,1780067529000,-950.77707124,0.00035421,2]
[423367796,1780067529000,-310.10057907,0.00035421,2]
[423367795,1780067529000,-300.0,0.00035421,2]
[423367787,1780067529000,-300.0,0.00035421,2]
[423367794,1780067529000,-1800.20391074,0.00035421,2]
[423367792,1780067529000,-866.0147925,0.00035421,2]
[423367801,1780067529000,-300.0,0.00035421,2]
[423367800,1780067529000,-595.09304777,0.00035421,2]
[423367798,1780067529000,-301.07110727,0.00035421,2]
[423367797,1780067529000,-1634.99163645,0.00035421,2]
[423367776,1780067529000,-535.00130983,0.00035421,2]
[423367788,1780067529000,-344.6097279,0.00035421,2]
[423367778,1780067529000,-727.22668275,0.00035421,2]
[423367763,1780067529000,-300.0,0.00035421,2]
[423367774,1780067529000,-403.22861642,0.00035421,2]
[423367799,1780067529000,-300.89044237,0.00035421,2]
[423367753,1780067529000,-1800.20391074,0.00035421,2]
[423367750,1780067529000,-300.0,0.00035421,2]
[423367758,1780067529000,-452.52893398,0.00035421,2]
[423367752,1780067529000,-950.77707124,0.00035421,2]
[423367751,1780067529000,-300.00000001,0.00035421,2]
[423367759,1780067529000,-300.0,0.00035421,2]
[423367760,1780067529000,-300.0,0.00035421,2]
[423367757,1780067529000,-464.59046343,0.00035421,2]
[423367761,1780067529000,-301.03788536,0.00035421,2]
[423367755,1780067529000,-595.09304777,0.00035421,2]
[423367777,1780067529000,-300.85167645,0.00035421,2]
[423367756,1780067529000,-300.0,0.00035421,2]
[423367771,1780067529000,-300.0,0.00035421,2]
[423367773,1780067529000,-605.44192367,0.00035421,2]
[423367772,1780067529000,-300.0,0.00035421,2]
[423367764,1780067529000,-301.62738872,0.00035421,2]